Workbook

Sheet ورقة1
G1: اجمالي مدفوع | I1: المستهدف
G2: =SUM(AQ5:AQ1000) -> 1650 | I2: =SUM(I5:I1000) -> 43019
D3: 2016-01-03
A4: اسم الطالب | B4: رقم القيد | C4: الصف | D4: تاريخ التسجيل | E4: المدة بلايام | G4: قيمة القسط السنوي | H4: قيمة القسط المرحل | I4: الاجمالي | J4: المدفوع | K4: تاريخ الدفع | L4: الباقي | M4: المدفوع | N4: تاريخ الدفع | O4: الباقي | P4: المدفوع | Q4: تاريخ الدفع | R4: الباقي | S4: المدفوع | T4: تاريخ الدفع | U4: الباقي | V4: المدفوع | W4: تاريخ الدفع | X4: الباقي | Y4: المدفوع | Z4: تاريخ الدفع | AA4: الباقي | AB4: المدفوع | AC4: تاريخ الدفع | AD4: الباقي | AE4: المدفوع | AF4: تاريخ الدفع | AG4: الباقي | AH4: المدفوع | AI4: تاريخ الدفع | AJ4: الباقي | AK4: المدفوع | AL4: تاريخ الدفع | AM4: الباقي | AN4: المدفوع | AO4: تاريخ الدفع | AP4: الباقي | AQ4: اجمالي مدفوع | AR4: اخر دفعة | AT4: القيمة الباقية | AU4: باقي الدين | AV4: توضيح | AW4: النقل | AX4: رقم الدفعة
A5: ابتسام | C5: الاول | D5: 2016-09-26 | E5: =DATEDIF($D$3,$D5,"d") -> 267 | G5: 700 | H5: 300 | I5: =IF(A5<>"",IF(AW5<>"",AQ5,H5+G5),0) -> 1000 | J5: 500 | K5: 2016-10-19 | L5: =IF(J5<>"",I5-J5,0) -> 500 | O5: =IF(M5<>"",L5-M5,0) -> 0 | R5: =IF(P5<>"",O5-P5,0) -> 0 | U5: =IF(S5<>"",R5-S5,0) -> 0 | X5: =IF(V5<>"",U5-V5,0) -> 0 | AA5: =IF(Y5<>"",X5-Y5,0) -> 0 | AD5: =IF(AB5<>"",AA5-AB5,0) -> 0 | AG5: =IF(AE5<>"",AD5-AE5,0) -> 0 | AJ5: =IF(AH5<>"",AG5-AH5,0) -> 0 | AM5: =IF(AK5<>"",AJ5-AK5,0) -> 0 | AP5: =IF(AN5<>"",AM5-AN5,0) -> 0 | AQ5: =SUM(AN5+AK5+AH5+AE5+AB5+Y5+V5+S5+P5+M5+J5) -> 500 | AR5: =IF(AN5<>"",AN5,IF(AK5<>"",AK5,IF(AH5<>"",AH5,IF(AE5<>"",AE5,IF(AB5<>"",AB5,IF(Y5<>"",Y5,IF(V5<>"",V5,IF(S5<>"",S5,IF(P5<>"",P5,IF(M5<>"",M5,IF(J5<>"",J5,0))))))))))) -> 500 | AT5: =IF(AQ5=I5,0,IF(AP5>1,AP5,IF(AM5>1,AM5,IF(AJ5>1,AJ5,IF(AG5>1,AG5,IF(AD5>1,AD5,IF(AA5>1,AA5,IF(X5>1,X5,IF(U5>1,U5,IF(R5>1,R5,IF(O5>1,O5,IF(L5>1,L5,I5)))))))))))) -> 500 | AU5: =IF(H5>AQ5,H5-AQ5,"لا يوجد") -> لا يوجد | AV5: =IF(AQ5=I5,"تم دفع كامل القيمة","القيمة غير مكتملة") -> القيمة غير مكتملة | AX5: =COUNTIF(J5:AP5,">1")/3 -> 1
A6: اروى | C6: التاسع | D6: 2016-10-16 | E6: 287 | G6: 700 | H6: 300 | I6: 1000 | L6: 0 | O6: 0 | R6: 0 | U6: 0 | X6: 0 | AA6: 0 | AD6: 0 | AG6: 0 | AJ6: 0 | AM6: 0 | AP6: 0 | AQ6: 0 | AR6: 0 | AT6: 1000 | AU6: 300 | AV6: القيمة غير مكتملة | AX6: 0
A7: اسعد | C7: التاسع | D7: 2016-10-16 | E7: 287 | G7: 700 | H7: 300 | I7: 1000 | L7: 0 | O7: 0 | R7: 0 | U7: 0 | X7: 0 | AA7: 0 | AD7: 0 | AG7: 0 | AJ7: 0 | AM7: 0 | AP7: 0 | AQ7: 0 | AR7: 0 | AT7: 1000 | AU7: 300 | AV7: القيمة غير مكتملة | AX7: 0
A8: اسلام | C8: الاول | D8: 2016-09-26 | E8: 267 | G8: 700 | H8: 300 | I8: 1000 | L8: 0 | O8: 0 | R8: 0 | U8: 0 | X8: 0 | AA8: 0 | AD8: 0 | AG8: 0 | AJ8: 0 | AM8: 0 | AP8: 0 | AQ8: 0 | AR8: 0 | AT8: 1000 | AU8: 300 | AV8: القيمة غير مكتملة | AX8: 0
A9: الاء | C9: التاسع | D9: 2016-10-16 | E9: 287 | G9: 700 | H9: 300 | I9: 1000 | L9: 0 | O9: 0 | R9: 0 | U9: 0 | X9: 0 | AA9: 0 | AD9: 0 | AG9: 0 | AJ9: 0 | AM9: 0 | AP9: 0 | AQ9: 0 | AR9: 0 | AT9: 1000 | AU9: 300 | AV9: القيمة غير مكتملة | AX9: 0
A10: الخامسة | C10: الخامس | D10: 2016-09-26 | E10: 267 | G10: 700 | H10: 300 | I10: 1000 | L10: 0 | O10: 0 | R10: 0 | U10: 0 | X10: 0 | AA10: 0 | AD10: 0 | AG10: 0 | AJ10: 0 | AM10: 0 | AP10: 0 | AQ10: 0 | AR10: 0 | AT10: 1000 | AU10: 300 | AV10: القيمة غير مكتملة | AX10: 0
A11: اياد | C11: الاول | D11: 2016-09-26 | E11: 267 | G11: 700 | H11: 300 | I11: 1000 | L11: 0 | O11: 0 | R11: 0 | U11: 0 | X11: 0 | AA11: 0 | AD11: 0 | AG11: 0 | AJ11: 0 | AM11: 0 | AP11: 0 | AQ11: 0 | AR11: 0 | AT11: 1000 | AU11: 300 | AV11: القيمة غير مكتملة | AX11: 0
A12: ايمان | C12: الاول | D12: 2016-10-17 | E12: 288 | G12: 700 | H12: 300 | I12: 830 | J12: 330 | K12: 2016-10-17 | L12: 500 | M12: 500 | N12: 2016-10-17 | O12: 0 | R12: 0 | U12: 0 | X12: 0 | AA12: 0 | AD12: 0 | AG12: 0 | AJ12: 0 | AM12: 0 | AP12: 0 | AQ12: 830 | AR12: 500 | AT12: 0 | AU12: لا يوجد | AV12: تم دفع كامل القيمة | AW12: انتقل | AX12: 1.666666667
A13: ايمن | C13: الاول | D13: 2016-10-17 | E13: 288 | G13: 700 | H13: 300 | I13: 1000 | L13: 0 | O13: 0 | R13: 0 | U13: 0 | X13: 0 | AA13: 0 | AD13: 0 | AG13: 0 | AJ13: 0 | AM13: 0 | AP13: 0 | AQ13: 0 | AR13: 0 | AT13: 1000 | AU13: 300 | AV13: القيمة غير مكتملة | AX13: 0
A14: بلال | C14: الاول | D14: 2016-09-26 | E14: 267 | G14: 700 | H14: 300 | I14: 1000 | L14: 0 | O14: 0 | R14: 0 | U14: 0 | X14: 0 | AA14: 0 | AD14: 0 | AG14: 0 | AJ14: 0 | AM14: 0 | AP14: 0 | AQ14: 0 | AR14: 0 | AT14: 1000 | AU14: 300 | AV14: القيمة غير مكتملة | AX14: 0
A15: ثامر | C15: الثاني | D15: 2016-09-26 | E15: 267 | G15: 700 | H15: 300 | I15: 1000 | L15: 0 | O15: 0 | R15: 0 | U15: 0 | X15: 0 | AA15: 0 | AD15: 0 | AG15: 0 | AJ15: 0 | AM15: 0 | AP15: 0 | AQ15: 0 | AR15: 0 | AT15: 1000 | AU15: 300 | AV15: القيمة غير مكتملة | AX15: 0
A16: ثريا | C16: الثاني | D16: 2016-09-26 | E16: 267 | G16: 700 | H16: 300 | I16: 1000 | L16: 0 | O16: 0 | R16: 0 | U16: 0 | X16: 0 | AA16: 0 | AD16: 0 | AG16: 0 | AJ16: 0 | AM16: 0 | AP16: 0 | AQ16: 0 | AR16: 0 | AT16: 1000 | AU16: 300 | AV16: القيمة غير مكتملة | AX16: 0
A17: جابر | C17: الثالث | D17: 2016-09-26 | E17: 267 | G17: 700 | H17: 300 | I17: 1000 | L17: 0 | O17: 0 | R17: 0 | U17: 0 | X17: 0 | AA17: 0 | AD17: 0 | AG17: 0 | AJ17: 0 | AM17: 0 | AP17: 0 | AQ17: 0 | AR17: 0 | AT17: 1000 | AU17: 300 | AV17: القيمة غير مكتملة | AX17: 0
A18: جلال | C18: الثالث | D18: 2016-09-26 | E18: 267 | G18: 700 | H18: 300 | I18: 1000 | L18: 0 | O18: 0 | R18: 0 | U18: 0 | X18: 0 | AA18: 0 | AD18: 0 | AG18: 0 | AJ18: 0 | AM18: 0 | AP18: 0 | AQ18: 0 | AR18: 0 | AT18: 1000 | AU18: 300 | AV18: القيمة غير مكتملة | AX18: 0
A19: جلال | C19: الثامن | D19: 2016-10-16 | E19: 287 | G19: 700 | H19: 300 | I19: 1000 | L19: 0 | O19: 0 | R19: 0 | U19: 0 | X19: 0 | AA19: 0 | AD19: 0 | AG19: 0 | AJ19: 0 | AM19: 0 | AP19: 0 | AQ19: 0 | AR19: 0 | AT19: 1000 | AU19: 300 | AV19: القيمة غير مكتملة | AX19: 0
A20: جمال | C20: الثالث | D20: 2016-09-26 | E20: 267 | G20: 700 | H20: 300 | I20: 1000 | L20: 0 | O20: 0 | R20: 0 | U20: 0 | X20: 0 | AA20: 0 | AD20: 0 | AG20: 0 | AJ20: 0 | AM20: 0 | AP20: 0 | AQ20: 0 | AR20: 0 | AT20: 1000 | AU20: 300 | AV20: القيمة غير مكتملة | AX20: 0
A21: جميلة | C21: الثالث | D21: 2016-09-26 | E21: 267 | G21: 700 | H21: 300 | I21: 1000 | L21: 0 | O21: 0 | R21: 0 | U21: 0 | X21: 0 | AA21: 0 | AD21: 0 | AG21: 0 | AJ21: 0 | AM21: 0 | AP21: 0 | AQ21: 0 | AR21: 0 | AT21: 1000 | AU21: 300 | AV21: القيمة غير مكتملة | AX21: 0
A22: جهاد | C22: الثامن | D22: 2016-10-16 | E22: 287 | G22: 700 | H22: 300 | I22: 1000 | L22: 0 | O22: 0 | R22: 0 | U22: 0 | X22: 0 | AA22: 0 | AD22: 0 | AG22: 0 | AJ22: 0 | AM22: 0 | AP22: 0 | AQ22: 0 | AR22: 0 | AT22: 1000 | AU22: 300 | AV22: القيمة غير مكتملة | AX22: 0
A23: جهينة | C23: الثامن | D23: 2016-10-16 | E23: 287 | G23: 700 | H23: 300 | I23: 1000 | L23: 0 | O23: 0 | R23: 0 | U23: 0 | X23: 0 | AA23: 0 | AD23: 0 | AG23: 0 | AJ23: 0 | AM23: 0 | AP23: 0 | AQ23: 0 | AR23: 0 | AT23: 1000 | AU23: 300 | AV23: القيمة غير مكتملة | AX23: 0
A24: خالد | C24: الخامس | D24: 2016-09-26 | E24: 267 | G24: 700 | H24: 300 | I24: 1000 | L24: 0 | O24: 0 | R24: 0 | U24: 0 | X24: 0 | AA24: 0 | AD24: 0 | AG24: 0 | AJ24: 0 | AM24: 0 | AP24: 0 | AQ24: 0 | AR24: 0 | AT24: 1000 | AU24: 300 | AV24: القيمة غير مكتملة | AX24: 0
A25: خليفة | C25: الخامس | D25: 2016-09-26 | E25: 267 | G25: 700 | H25: 300 | I25: 1000 | L25: 0 | O25: 0 | R25: 0 | U25: 0 | X25: 0 | AA25: 0 | AD25: 0 | AG25: 0 | AJ25: 0 | AM25: 0 | AP25: 0 | AQ25: 0 | AR25: 0 | AT25: 1000 | AU25: 300 | AV25: القيمة غير مكتملة | AX25: 0
A26: خميس | C26: الخامس | D26: 2016-09-26 | E26: 267 | G26: 700 | H26: 300 | I26: 1000 | L26: 0 | O26: 0 | R26: 0 | U26: 0 | X26: 0 | AA26: 0 | AD26: 0 | AG26: 0 | AJ26: 0 | AM26: 0 | AP26: 0 | AQ26: 0 | AR26: 0 | AT26: 1000 | AU26: 300 | AV26: القيمة غير مكتملة | AX26: 0
A27: خيري | C27: الخامس | D27: 2016-09-26 | E27: 267 | G27: 700 | H27: 300 | I27: 1000 | L27: 0 | O27: 0 | R27: 0 | U27: 0 | X27: 0 | AA27: 0 | AD27: 0 | AG27: 0 | AJ27: 0 | AM27: 0 | AP27: 0 | AQ27: 0 | AR27: 0 | AT27: 1000 | AU27: 300 | AV27: القيمة غير مكتملة | AX27: 0
A28: رائد | C28: الرابع | D28: 2016-09-26 | E28: 267 | G28: 700 | H28: 300 | I28: 1000 | L28: 0 | O28: 0 | R28: 0 | U28: 0 | X28: 0 | AA28: 0 | AD28: 0 | AG28: 0 | AJ28: 0 | AM28: 0 | AP28: 0 | AQ28: 0 | AR28: 0 | AT28: 1000 | AU28: 300 | AV28: القيمة غير مكتملة | AX28: 0
A29: ربيع | C29: الرابع | D29: 2016-09-26 | E29: 267 | G29: 700 | H29: 300 | I29: 1000 | L29: 0 | O29: 0 | R29: 0 | U29: 0 | X29: 0 | AA29: 0 | AD29: 0 | AG29: 0 | AJ29: 0 | AM29: 0 | AP29: 0 | AQ29: 0 | AR29: 0 | AT29: 1000 | AU29: 300 | AV29: القيمة غير مكتملة | AX29: 0
A30: ربيعة | C30: الرابع | D30: 2016-09-26 | E30: 267 | G30: 700 | H30: 300 | I30: 1000 | L30: 0 | O30: 0 | R30: 0 | U30: 0 | X30: 0 | AA30: 0 | AD30: 0 | AG30: 0 | AJ30: 0 | AM30: 0 | AP30: 0 | AQ30: 0 | AR30: 0 | AT30: 1000 | AU30: 300 | AV30: القيمة غير مكتملة | AX30: 0
A31: رواد | C31: الرابع | D31: 2016-09-26 | E31: 267 | G31: 700 | H31: 300 | I31: 1000 | L31: 0 | O31: 0 | R31: 0 | U31: 0 | X31: 0 | AA31: 0 | AD31: 0 | AG31: 0 | AJ31: 0 | AM31: 0 | AP31: 0 | AQ31: 0 | AR31: 0 | AT31: 1000 | AU31: 300 | AV31: القيمة غير مكتملة | AX31: 0
A32: سالم | C32: السادس | D32: 2016-09-26 | E32: 267 | G32: 700 | H32: 300 | I32: 1000 | L32: 0 | O32: 0 | R32: 0 | U32: 0 | X32: 0 | AA32: 0 | AD32: 0 | AG32: 0 | AJ32: 0 | AM32: 0 | AP32: 0 | AQ32: 0 | AR32: 0 | AT32: 1000 | AU32: 300 | AV32: القيمة غير مكتملة | AX32: 0
A33: سالمة | C33: السادس | D33: 2016-09-26 | E33: 267 | F33: =(E33/7)*25 -> 953.5714286 | G33: 700 | H33: 300 | I33: 1000 | L33: 0 | O33: 0 | R33: 0 | U33: 0 | X33: 0 | AA33: 0 | AD33: 0 | AG33: 0 | AJ33: 0 | AM33: 0 | AP33: 0 | AQ33: 0 | AR33: 0 | AT33: 1000 | AU33: 300 | AV33: القيمة غير مكتملة | AX33: 0
A34: سناء | C34: التمهيدي | D34: 2016-10-16 | E34: 287 | G34: 700 | H34: 300 | I34: 1000 | L34: 0 | O34: 0 | R34: 0 | U34: 0 | X34: 0 | AA34: 0 | AD34: 0 | AG34: 0 | AJ34: 0 | AM34: 0 | AP34: 0 | AQ34: 0 | AR34: 0 | AT34: 1000 | AU34: 300 | AV34: القيمة غير مكتملة | AX34: 0
A35: سناء | C35: السادس | D35: 2016-09-26 | E35: 267 | F35: =(E35/7)*25 -> 953.5714286 | G35: 700 | H35: 300 | I35: 1000 | L35: 0 | O35: 0 | R35: 0 | U35: 0 | X35: 0 | AA35: 0 | AD35: 0 | AG35: 0 | AJ35: 0 | AM35: 0 | AP35: 0 | AQ35: 0 | AR35: 0 | AT35: 1000 | AU35: 300 | AV35: القيمة غير مكتملة | AX35: 0
A36: سند | C36: التمهيدي | D36: 2016-10-16 | E36: 287 | G36: 700 | H36: 300 | I36: 1000 | L36: 0 | O36: 0 | R36: 0 | U36: 0 | X36: 0 | AA36: 0 | AD36: 0 | AG36: 0 | AJ36: 0 | AM36: 0 | AP36: 0 | AQ36: 0 | AR36: 0 | AT36: 1000 | AU36: 300 | AV36: القيمة غير مكتملة | AX36: 0
A37: سند | C37: السادس | D37: 2016-09-26 | E37: 267 | F37: =(E37/7)*25 -> 953.5714286 | G37: 700 | H37: 300 | I37: 1000 | L37: 0 | O37: 0 | R37: 0 | U37: 0 | X37: 0 | AA37: 0 | AD37: 0 | AG37: 0 | AJ37: 0 | AM37: 0 | AP37: 0 | AQ37: 0 | AR37: 0 | AT37: 1000 | AU37: 300 | AV37: القيمة غير مكتملة | AX37: 0
A38: سوسن | C38: التمهيدي | D38: 2016-10-16 | E38: 287 | G38: 700 | H38: 300 | I38: 1000 | L38: 0 | O38: 0 | R38: 0 | U38: 0 | X38: 0 | AA38: 0 | AD38: 0 | AG38: 0 | AJ38: 0 | AM38: 0 | AP38: 0 | AQ38: 0 | AR38: 0 | AT38: 1000 | AU38: 300 | AV38: القيمة غير مكتملة | AX38: 0
A39: عامر | C39: السابع | D39: 2016-10-16 | E39: 287 | F39: =(E39/7)*25 -> 1025 | G39: 700 | H39: 300 | I39: 1000 | L39: 0 | O39: 0 | R39: 0 | U39: 0 | X39: 0 | AA39: 0 | AD39: 0 | AG39: 0 | AJ39: 0 | AM39: 0 | AP39: 0 | AQ39: 0 | AR39: 0 | AT39: 1000 | AU39: 300 | AV39: القيمة غير مكتملة | AX39: 0
A40: عمر | C40: الثاني | D40: 2016-09-26 | E40: 267 | G40: 700 | H40: 300 | I40: 1000 | L40: 0 | O40: 0 | R40: 0 | U40: 0 | X40: 0 | AA40: 0 | AD40: 0 | AG40: 0 | AJ40: 0 | AM40: 0 | AP40: 0 | AQ40: 0 | AR40: 0 | AT40: 1000 | AU40: 300 | AV40: القيمة غير مكتملة | AX40: 0
A41: عمر | C41: السابع | D41: 2016-10-16 | E41: 287 | F41: =(E41/7)*25 -> 1025 | G41: 700 | H41: 300 | I41: 1000 | L41: 0 | O41: 0 | R41: 0 | U41: 0 | X41: 0 | AA41: 0 | AD41: 0 | AG41: 0 | AJ41: 0 | AM41: 0 | AP41: 0 | AQ41: 0 | AR41: 0 | AT41: 1000 | AU41: 300 | AV41: القيمة غير مكتملة | AX41: 0
A42: عمران | C42: السابع | D42: 2016-10-16 | E42: 287 | F42: =(E42/7)*25 -> 1025 | G42: 700 | H42: 300 | I42: 1000 | L42: 0 | O42: 0 | R42: 0 | U42: 0 | X42: 0 | AA42: 0 | AD42: 0 | AG42: 0 | AJ42: 0 | AM42: 0 | AP42: 0 | AQ42: 0 | AR42: 0 | AT42: 1000 | AU42: 300 | AV42: القيمة غير مكتملة | AX42: 0
A43: لتلاتل | C43: الاول | G43: 700 | H43: 300 | I43: 1000 | L43: 0 | O43: 0 | R43: 0 | U43: 0 | X43: 0 | AA43: 0 | AD43: 0 | AG43: 0 | AJ43: 0 | AM43: 0 | AP43: 0 | AQ43: 0 | AR43: 0 | AT43: 1000 | AU43: 300 | AV43: القيمة غير مكتملة | AX43: 0
A44: محمد | C44: الثاني | D44: 2016-09-26 | E44: 267 | G44: 700 | H44: 300 | I44: 1000 | L44: 0 | O44: 0 | R44: 0 | U44: 0 | X44: 0 | AA44: 0 | AD44: 0 | AG44: 0 | AJ44: 0 | AM44: 0 | AP44: 0 | AQ44: 0 | AR44: 0 | AT44: 1000 | AU44: 300 | AV44: القيمة غير مكتملة | AX44: 0
B45: السابع | C45: =COUNTIF(#REF!,"السابع") ->  | I45: 77
B46: الثامن | C46: =COUNTIF(#REF!,"الثامن") ->  | I46: =SUM(I41:I43) -> 3000 | J46: 1 | K46: 1900-01-02 | L46: 3 | M46: 4 | N46: 1900-01-04 | AR46: =SUM(AR41:AR43) -> 0 | AT46: =SUM(AT41:AT43) -> 3000
B47: التاسع | C47: =COUNTIF(#REF!,"التاسع") ->  | I47: 7 | J47: 5 | K47: 1900-01-06 | L47: 6 | M47: 89
B48: التمهيدي | C48: =COUNTIF(#REF!,"التمهيدي") ->  | E48: الاول | F48: =SUMIF(C41:C43,"الاول",I41:I43) -> 1000 | I48: 8 | J48: 33 | K48: 1900-02-24 | L48: 66
B49: الثاني | C49: =COUNTIF(C41:C44,"الثاني") -> 1 | N49: الثالث
B50: الثالث | C50: =COUNTIF(C41:C44,"الثالث") -> 0 | E50: الخامس | F50: =SUMIF(C43:C45,"الخامس",I43:I45) -> 0
B51: الرابع | C51: =COUNTIF(C41:C44,"الرابع") -> 0 | E51: السادس | F51: =SUMIF(#REF!,"السادس",#REF!) -> 
B52: السادس | C52: =COUNTIF(C41:C43,"السادس") -> 0 | E52: الثالث | F52: =SUMIF(#REF!,"الثالث",#REF!) -> 
B53: الخامس | C53: =COUNTIF(C41:C45,"الخامس") -> 0 | E53: الرابع | F53: =SUMIF(C48:C48,"الرابع",I48:I48) -> 0
B54: الاول | C54: =COUNTIF(C41:C50,"الاول") -> 1 | I54: 88
E55: =DATEDIF($D$3,$D55,"d") ->  | G55: 700 | H55: 300 | I55: =IF(A55<>"",IF(AW55<>"",AQ55,H55+G55),0) -> 0 | L55: =IF(J55<>"",I55-J55,0) -> 0 | O55: =IF(M55<>"",L55-M55,0) -> 0 | R55: =IF(P55<>"",O55-P55,0) -> 0 | U55: =IF(S55<>"",R55-S55,0) -> 0 | X55: =IF(V55<>"",U55-V55,0) -> 0 | AA55: =IF(Y55<>"",X55-Y55,0) -> 0 | AD55: =IF(AB55<>"",AA55-AB55,0) -> 0 | AG55: =IF(AE55<>"",AD55-AE55,0) -> 0 | AJ55: =IF(AH55<>"",AG55-AH55,0) -> 0 | AM55: =IF(AK55<>"",AJ55-AK55,0) -> 0 | AP55: =IF(AN55<>"",AM55-AN55,0) -> 0 | AQ55: =SUM(AN55+AK55+AH55+AE55+AB55+Y55+V55+S55+P55+M55+J55) -> 0 | AR55: =IF(AN55<>"",AN55,IF(AK55<>"",AK55,IF(AH55<>"",AH55,IF(AE55<>"",AE55,IF(AB55<>"",AB55,IF(Y55<>"",Y55,IF(V55<>"",V55,IF(S55<>"",S55,IF(P55<>"",P55,IF(M55<>"",M55,IF(J55<>"",J55,0))))))))))) -> 0 | AT55: =IF(AQ55=I55,0,IF(AP55>1,AP55,IF(AM55>1,AM55,IF(AJ55>1,AJ55,IF(AG55>1,AG55,IF(AD55>1,AD55,IF(AA55>1,AA55,IF(X55>1,X55,IF(U55>1,U55,IF(R55>1,R55,IF(O55>1,O55,IF(L55>1,L55,I55)))))))))))) -> 0 | AU55: =IF(H55>AQ55,H55-AQ55,"لا يوجد") -> 300 | AV55: =IF(AQ55=I55,"تم دفع كامل القيمة","القيمة غير مكتملة") -> تم دفع كامل القيمة | AX55: =COUNTIF(J55:AP55,">1")/3 -> 0
G56: 700 | H56: 300 | I56: 0 | L56: 0 | O56: 0 | R56: 0 | U56: 0 | X56: 0 | AA56: 0 | AD56: 0 | AG56: 0 | AJ56: 0 | AM56: 0 | AP56: 0 | AQ56: 0 | AR56: 0 | AT56: 0 | AU56: 300 | AV56: تم دفع كامل القيمة | AX56: 0
G57: 700 | H57: 300 | I57: 0 | L57: 0 | O57: 0 | R57: 0 | U57: 0 | X57: 0 | AA57: 0 | AD57: 0 | AG57: 0 | AJ57: 0 | AM57: 0 | AP57: 0 | AQ57: 0 | AR57: 0 | AT57: 0 | AU57: 300 | AV57: تم دفع كامل القيمة | AX57: 0
G58: 700 | H58: 300 | I58: 0 | L58: 0 | O58: 0 | R58: 0 | U58: 0 | X58: 0 | AA58: 0 | AD58: 0 | AG58: 0 | AJ58: 0 | AM58: 0 | AP58: 0 | AQ58: 0 | AR58: 0 | AT58: 0 | AU58: 300 | AV58: تم دفع كامل القيمة | AX58: 0
D59: 2016-09-30 | E59: 271 | G59: 700 | H59: 300 | I59: 0 | L59: 0 | O59: 0 | R59: 0 | U59: 0 | X59: 0 | AA59: 0 | AD59: 0 | AG59: 0 | AJ59: 0 | AM59: 0 | AP59: 0 | AQ59: 0 | AR59: 0 | AT59: 0 | AU59: 300 | AV59: تم دفع كامل القيمة | AX59: 0
G60: 700 | H60: 300 | I60: 0 | L60: 0 | O60: 0 | R60: 0 | U60: 0 | X60: 0 | AA60: 0 | AD60: 0 | AG60: 0 | AJ60: 0 | AM60: 0 | AP60: 0 | AQ60: 0 | AR60: 0 | AT60: 0 | AU60: 300 | AV60: تم دفع كامل القيمة | AX60: 0
G61: 700 | H61: 300 | I61: 0 | L61: 0 | O61: 0 | R61: 0 | U61: 0 | X61: 0 | AA61: 0 | AD61: 0 | AG61: 0 | AJ61: 0 | AM61: 0 | AP61: 0 | AQ61: 0 | AR61: 0 | AT61: 0 | AU61: 300 | AV61: تم دفع كامل القيمة | AX61: 0
G62: 700 | H62: 300 | I62: 0 | L62: 0 | O62: 0 | R62: 0 | U62: 0 | X62: 0 | AA62: 0 | AD62: 0 | AG62: 0 | AJ62: 0 | AM62: 0 | AP62: 0 | AQ62: 0 | AR62: 0 | AT62: 0 | AU62: 300 | AV62: تم دفع كامل القيمة | AX62: 0
G63: 700 | H63: 300 | I63: 0 | L63: 0 | O63: 0 | R63: 0 | U63: 0 | X63: 0 | AA63: 0 | AD63: 0 | AG63: 0 | AJ63: 0 | AM63: 0 | AP63: 0 | AQ63: 0 | AR63: 0 | AT63: 0 | AU63: 300 | AV63: تم دفع كامل القيمة | AX63: 0
G64: 700 | H64: 300 | I64: 0 | L64: 0 | O64: 0 | R64: 0 | U64: 0 | X64: 0 | AA64: 0 | AD64: 0 | AG64: 0 | AJ64: 0 | AM64: 0 | AP64: 0 | AQ64: 0 | AR64: 0 | AT64: 0 | AU64: 300 | AV64: تم دفع كامل القيمة | AX64: 0
D65: 2016-10-01 | E65: 272 | G65: 700 | H65: 300 | I65: 0 | L65: 0 | O65: 0 | R65: 0 | U65: 0 | X65: 0 | AA65: 0 | AD65: 0 | AG65: 0 | AJ65: 0 | AM65: 0 | AP65: 0 | AQ65: 0 | AR65: 0 | AT65: 0 | AU65: 300 | AV65: تم دفع كامل القيمة | AX65: 0
G66: 700 | H66: 300 | I66: 0 | L66: 0 | O66: 0 | R66: 0 | U66: 0 | X66: 0 | AA66: 0 | AD66: 0 | AG66: 0 | AJ66: 0 | AM66: 0 | AP66: 0 | AQ66: 0 | AR66: 0 | AT66: 0 | AU66: 300 | AV66: تم دفع كامل القيمة | AX66: 0
D67: 2016-11-23 | E67: 325 | G67: 700 | H67: 300 | I67: 0 | L67: 0 | O67: 0 | R67: 0 | U67: 0 | X67: 0 | AA67: 0 | AD67: 0 | AG67: 0 | AJ67: 0 | AM67: 0 | AP67: 0 | AQ67: 0 | AR67: 0 | AT67: 0 | AU67: 300 | AV67: تم دفع كامل القيمة | AX67: 0
D68: 2016-11-24 | E68: 326 | G68: 700 | H68: 300 | I68: 0 | L68: 0 | O68: 0 | R68: 0 | U68: 0 | X68: 0 | AA68: 0 | AD68: 0 | AG68: 0 | AJ68: 0 | AM68: 0 | AP68: 0 | AQ68: 0 | AR68: 0 | AT68: 0 | AU68: 300 | AV68: تم دفع كامل القيمة | AX68: 0
D69: 2016-11-25 | E69: 327 | G69: 700 | H69: 300 | I69: 0 | L69: 0 | O69: 0 | R69: 0 | U69: 0 | X69: 0 | AA69: 0 | AD69: 0 | AG69: 0 | AJ69: 0 | AM69: 0 | AP69: 0 | AQ69: 0 | AR69: 0 | AT69: 0 | AU69: 300 | AV69: تم دفع كامل القيمة | AX69: 0
D70: 2016-11-26 | E70: 328 | F70: 100 | G70: 700 | H70: 300 | I70: 0 | L70: 0 | O70: 0 | R70: 0 | U70: 0 | X70: 0 | AA70: 0 | AD70: 0 | AG70: 0 | AJ70: 0 | AM70: 0 | AP70: 0 | AQ70: 0 | AR70: 0 | AT70: 0 | AU70: 300 | AV70: تم دفع كامل القيمة | AX70: 0
D71: 2016-11-27 | E71: 329 | G71: 700 | H71: 300 | I71: 0 | L71: 0 | O71: 0 | R71: 0 | U71: 0 | X71: 0 | AA71: 0 | AD71: 0 | AG71: 0 | AJ71: 0 | AM71: 0 | AP71: 0 | AQ71: 0 | AR71: 0 | AT71: 0 | AU71: 300 | AV71: تم دفع كامل القيمة | AX71: 0
D72: 2016-11-28 | E72: 330 | G72: 700 | H72: 300 | I72: 0 | L72: 0 | O72: 0 | R72: 0 | U72: 0 | X72: 0 | AA72: 0 | AD72: 0 | AG72: 0 | AJ72: 0 | AM72: 0 | AP72: 0 | AQ72: 0 | AR72: 0 | AT72: 0 | AU72: 300 | AV72: تم دفع كامل القيمة | AX72: 0
D73: 2016-09-26 | E73: 267 | G73: 700 | H73: 300 | I73: 0 | L73: 0 | O73: 0 | R73: 0 | U73: 0 | X73: 0 | AA73: 0 | AD73: 0 | AG73: 0 | AJ73: 0 | AM73: 0 | AP73: 0 | AQ73: 0 | AR73: 0 | AT73: 0 | AU73: 300 | AV73: تم دفع كامل القيمة | AX73: 0
D74: 2016-11-30 | E74: 332 | G74: 700 | H74: 300 | I74: 0 | L74: 0 | O74: 0 | R74: 0 | U74: 0 | X74: 0 | AA74: 0 | AD74: 0 | AG74: 0 | AJ74: 0 | AM74: 0 | AP74: 0 | AQ74: 0 | AR74: 0 | AT74: 0 | AU74: 300 | AV74: تم دفع كامل القيمة | AX74: 0
D75: 2016-12-01 | E75: 333 | G75: 700 | H75: 300 | I75: 0 | L75: 0 | O75: 0 | R75: 0 | U75: 0 | X75: 0 | AA75: 0 | AD75: 0 | AG75: 0 | AJ75: 0 | AM75: 0 | AP75: 0 | AQ75: 0 | AR75: 0 | AT75: 0 | AU75: 300 | AV75: تم دفع كامل القيمة | AX75: 0
D76: 2016-12-02 | E76: 334 | G76: 700 | H76: 300 | I76: 0 | L76: 0 | O76: 0 | R76: 0 | U76: 0 | X76: 0 | AA76: 0 | AD76: 0 | AG76: 0 | AJ76: 0 | AM76: 0 | AP76: 0 | AQ76: 0 | AR76: 0 | AT76: 0 | AU76: 300 | AV76: تم دفع كامل القيمة | AX76: 0
D77: 2016-12-03 | E77: 335 | G77: 700 | H77: 300 | I77: 0 | L77: 0 | O77: 0 | R77: 0 | U77: 0 | X77: 0 | AA77: 0 | AD77: 0 | AG77: 0 | AJ77: 0 | AM77: 0 | AP77: 0 | AQ77: 0 | AR77: 0 | AT77: 0 | AU77: 300 | AV77: تم دفع كامل القيمة | AX77: 0
D78: 2016-12-04 | E78: 336 | G78: 700 | H78: 300 | I78: 0 | L78: 0 | O78: 0 | R78: 0 | U78: 0 | X78: 0 | AA78: 0 | AD78: 0 | AG78: 0 | AJ78: 0 | AM78: 0 | AP78: 0 | AQ78: 0 | AR78: 0 | AT78: 0 | AU78: 300 | AV78: تم دفع كامل القيمة | AX78: 0
D79: 2016-10-02 | E79: 273 | G79: 700 | H79: 300 | I79: 0 | L79: 0 | O79: 0 | R79: 0 | U79: 0 | X79: 0 | AA79: 0 | AD79: 0 | AG79: 0 | AJ79: 0 | AM79: 0 | AP79: 0 | AQ79: 0 | AR79: 0 | AT79: 0 | AU79: 300 | AV79: تم دفع كامل القيمة | AX79: 0
D80: 2016-12-06 | E80: 338 | G80: 700 | H80: 300 | I80: 0 | L80: 0 | O80: 0 | R80: 0 | U80: 0 | X80: 0 | AA80: 0 | AD80: 0 | AG80: 0 | AJ80: 0 | AM80: 0 | AP80: 0 | AQ80: 0 | AR80: 0 | AT80: 0 | AU80: 300 | AV80: تم دفع كامل القيمة | AX80: 0
D81: 2016-12-07 | E81: 339 | G81: 700 | H81: 300 | I81: 0 | L81: 0 | O81: 0 | R81: 0 | U81: 0 | X81: 0 | AA81: 0 | AD81: 0 | AG81: 0 | AJ81: 0 | AM81: 0 | AP81: 0 | AQ81: 0 | AR81: 0 | AT81: 0 | AU81: 300 | AV81: تم دفع كامل القيمة | AX81: 0
D82: 2016-12-10 | E82: 342 | G82: 700 | H82: 300 | I82: 0 | L82: 0 | O82: 0 | R82: 0 | U82: 0 | X82: 0 | AA82: 0 | AD82: 0 | AG82: 0 | AJ82: 0 | AM82: 0 | AP82: 0 | AQ82: 0 | AR82: 0 | AT82: 0 | AU82: 300 | AV82: تم دفع كامل القيمة | AX82: 0
D83: 2016-12-11 | E83: 343 | G83: 700 | H83: 300 | I83: 0 | L83: 0 | O83: 0 | R83: 0 | U83: 0 | X83: 0 | AA83: 0 | AD83: 0 | AG83: 0 | AJ83: 0 | AM83: 0 | AP83: 0 | AQ83: 0 | AR83: 0 | AT83: 0 | AU83: 300 | AV83: تم دفع كامل القيمة | AX83: 0
D84: 2016-12-12 | E84: 344 | G84: 700 | H84: 300 | I84: 0 | L84: 0 | O84: 0 | R84: 0 | U84: 0 | X84: 0 | AA84: 0 | AD84: 0 | AG84: 0 | AJ84: 0 | AM84: 0 | AP84: 0 | AQ84: 0 | AR84: 0 | AT84: 0 | AU84: 300 | AV84: تم دفع كامل القيمة | AX84: 0
D85: 2016-01-08 | E85: 5 | G85: 700 | H85: 300 | I85: 0 | L85: 0 | O85: 0 | R85: 0 | U85: 0 | X85: 0 | AA85: 0 | AD85: 0 | AG85: 0 | AJ85: 0 | AM85: 0 | AP85: 0 | AQ85: 0 | AR85: 0 | AT85: 0 | AU85: 300 | AV85: تم دفع كامل القيمة | AX85: 0
D86: 2016-12-14 | E86: 346 | G86: 700 | H86: 300 | I86: 0 | L86: 0 | O86: 0 | R86: 0 | U86: 0 | X86: 0 | AA86: 0 | AD86: 0 | AG86: 0 | AJ86: 0 | AM86: 0 | AP86: 0 | AQ86: 0 | AR86: 0 | AT86: 0 | AU86: 300 | AV86: تم دفع كامل القيمة | AX86: 0
D87: 2016-12-15 | E87: =DATEDIF($D$3,$D87,"d") -> 347 | G87: 700 | H87: 300 | I87: =IF(A87<>"",IF(AW87<>"",AQ87,H87+G87),0) -> 0 | L87: =IF(J87<>"",I87-J87,0) -> 0 | O87: =IF(M87<>"",L87-M87,0) -> 0 | R87: =IF(P87<>"",O87-P87,0) -> 0 | U87: =IF(S87<>"",R87-S87,0) -> 0 | X87: =IF(V87<>"",U87-V87,0) -> 0 | AA87: =IF(Y87<>"",X87-Y87,0) -> 0 | AD87: =IF(AB87<>"",AA87-AB87,0) -> 0 | AG87: =IF(AE87<>"",AD87-AE87,0) -> 0 | AJ87: =IF(AH87<>"",AG87-AH87,0) -> 0 | AM87: =IF(AK87<>"",AJ87-AK87,0) -> 0 | AP87: =IF(AN87<>"",AM87-AN87,0) -> 0 | AQ87: =SUM(AN87+AK87+AH87+AE87+AB87+Y87+V87+S87+P87+M87+J87) -> 0 | AR87: =IF(AN87<>"",AN87,IF(AK87<>"",AK87,IF(AH87<>"",AH87,IF(AE87<>"",AE87,IF(AB87<>"",AB87,IF(Y87<>"",Y87,IF(V87<>"",V87,IF(S87<>"",S87,IF(P87<>"",P87,IF(M87<>"",M87,IF(J87<>"",J87,0))))))))))) -> 0 | AT87: =IF(AQ87=I87,0,IF(AP87>1,AP87,IF(AM87>1,AM87,IF(AJ87>1,AJ87,IF(AG87>1,AG87,IF(AD87>1,AD87,IF(AA87>1,AA87,IF(X87>1,X87,IF(U87>1,U87,IF(R87>1,R87,IF(O87>1,O87,IF(L87>1,L87,I87)))))))))))) -> 0 | AU87: =IF(H87>AQ87,H87-AQ87,"لا يوجد") -> 300 | AV87: =IF(AQ87=I87,"تم دفع كامل القيمة","القيمة غير مكتملة") -> تم دفع كامل القيمة | AX87: =COUNTIF(J87:AP87,">1")/3 -> 0
D88: 2016-12-16 | E88: 348 | G88: 700 | H88: 300 | I88: 0 | L88: 0 | O88: 0 | R88: 0 | U88: 0 | X88: 0 | AA88: 0 | AD88: 0 | AG88: 0 | AJ88: 0 | AM88: 0 | AP88: 0 | AQ88: 0 | AR88: 0 | AT88: 0 | AU88: 300 | AV88: تم دفع كامل القيمة | AX88: 0
D89: 2016-12-17 | E89: 349 | G89: 700 | H89: 300 | I89: 0 | L89: 0 | O89: 0 | R89: 0 | U89: 0 | X89: 0 | AA89: 0 | AD89: 0 | AG89: 0 | AJ89: 0 | AM89: 0 | AP89: 0 | AQ89: 0 | AR89: 0 | AT89: 0 | AU89: 300 | AV89: تم دفع كامل القيمة | AX89: 0
D90: 2016-12-18 | E90: 350 | G90: 700 | H90: 300 | I90: 0 | L90: 0 | O90: 0 | R90: 0 | U90: 0 | X90: 0 | AA90: 0 | AD90: 0 | AG90: 0 | AJ90: 0 | AM90: 0 | AP90: 0 | AQ90: 0 | AR90: 0 | AT90: 0 | AU90: 300 | AV90: تم دفع كامل القيمة | AX90: 0
D91: 2016-12-19 | E91: 351 | G91: 700 | H91: 300 | I91: 0 | L91: 0 | O91: 0 | R91: 0 | U91: 0 | X91: 0 | AA91: 0 | AD91: 0 | AG91: 0 | AJ91: 0 | AM91: 0 | AP91: 0 | AQ91: 0 | AR91: 0 | AT91: 0 | AU91: 300 | AV91: تم دفع كامل القيمة | AX91: 0
D92: 2016-12-20 | E92: 352 | G92: 700 | H92: 300 | I92: 0 | L92: 0 | O92: 0 | R92: 0 | U92: 0 | X92: 0 | AA92: 0 | AD92: 0 | AG92: 0 | AJ92: 0 | AM92: 0 | AP92: 0 | AQ92: 0 | AR92: 0 | AT92: 0 | AU92: 300 | AV92: تم دفع كامل القيمة | AX92: 0
D93: 2016-12-21 | E93: 353 | G93: 700 | H93: 300 | I93: 0 | L93: 0 | O93: 0 | R93: 0 | U93: 0 | X93: 0 | AA93: 0 | AD93: 0 | AG93: 0 | AJ93: 0 | AM93: 0 | AP93: 0 | AQ93: 0 | AR93: 0 | AT93: 0 | AU93: 300 | AV93: تم دفع كامل القيمة | AX93: 0
D94: 2016-12-22 | E94: 354 | G94: 700 | H94: 300 | I94: 0 | L94: 0 | O94: 0 | R94: 0 | U94: 0 | X94: 0 | AA94: 0 | AD94: 0 | AG94: 0 | AJ94: 0 | AM94: 0 | AP94: 0 | AQ94: 0 | AR94: 0 | AT94: 0 | AU94: 300 | AV94: تم دفع كامل القيمة | AX94: 0
D95: 2016-12-23 | E95: 355 | G95: 700 | H95: 300 | I95: 0 | L95: 0 | O95: 0 | R95: 0 | U95: 0 | X95: 0 | AA95: 0 | AD95: 0 | AG95: 0 | AJ95: 0 | AM95: 0 | AP95: 0 | AQ95: 0 | AR95: 0 | AT95: 0 | AU95: 300 | AV95: تم دفع كامل القيمة | AX95: 0
D96: 2016-12-24 | E96: 356 | G96: 700 | H96: 300 | I96: 0 | L96: 0 | O96: 0 | R96: 0 | U96: 0 | X96: 0 | AA96: 0 | AD96: 0 | AG96: 0 | AJ96: 0 | AM96: 0 | AP96: 0 | AQ96: 0 | AR96: 0 | AT96: 0 | AU96: 300 | AV96: تم دفع كامل القيمة | AX96: 0
D97: 2016-12-25 | E97: 357 | G97: 700 | H97: 300 | I97: 0 | L97: 0 | O97: 0 | R97: 0 | U97: 0 | X97: 0 | AA97: 0 | AD97: 0 | AG97: 0 | AJ97: 0 | AM97: 0 | AP97: 0 | AQ97: 0 | AR97: 0 | AT97: 0 | AU97: 300 | AV97: تم دفع كامل القيمة | AX97: 0
D98: 2016-12-26 | E98: 358 | G98: 700 | H98: 300 | I98: 0 | L98: 0 | O98: 0 | R98: 0 | U98: 0 | X98: 0 | AA98: 0 | AD98: 0 | AG98: 0 | AJ98: 0 | AM98: 0 | AP98: 0 | AQ98: 0 | AR98: 0 | AT98: 0 | AU98: 300 | AV98: تم دفع كامل القيمة | AX98: 0
D99: 2016-12-27 | E99: 359 | G99: 700 | H99: 300 | I99: 0 | L99: 0 | O99: 0 | R99: 0 | U99: 0 | X99: 0 | AA99: 0 | AD99: 0 | AG99: 0 | AJ99: 0 | AM99: 0 | AP99: 0 | AQ99: 0 | AR99: 0 | AT99: 0 | AU99: 300 | AV99: تم دفع كامل القيمة | AX99: 0
G100: 700 | H100: 300 | I100: 0 | L100: 0 | O100: 0 | R100: 0 | U100: 0 | X100: 0 | AA100: 0 | AD100: 0 | AG100: 0 | AJ100: 0 | AM100: 0 | AP100: 0 | AQ100: 0 | AR100: 0 | AT100: 0 | AU100: 300 | AV100: تم دفع كامل القيمة | AX100: 0
D101: 2016-12-28 | E101: 360 | G101: 700 | H101: 300 | I101: 0 | L101: 0 | O101: 0 | R101: 0 | U101: 0 | X101: 0 | AA101: 0 | AD101: 0 | AG101: 0 | AJ101: 0 | AM101: 0 | AP101: 0 | AQ101: 0 | AR101: 0 | AT101: 0 | AU101: 300 | AV101: تم دفع كامل القيمة | AX101: 0
D102: 2016-12-29 | E102: 361 | G102: 700 | H102: 300 | I102: 0 | L102: 0 | O102: 0 | R102: 0 | U102: 0 | X102: 0 | AA102: 0 | AD102: 0 | AG102: 0 | AJ102: 0 | AM102: 0 | AP102: 0 | AQ102: 0 | AR102: 0 | AT102: 0 | AU102: 300 | AV102: تم دفع كامل القيمة | AX102: 0
D103: 2016-12-30 | E103: 362 | G103: 700 | H103: 300 | I103: 0 | L103: 0 | O103: 0 | R103: 0 | U103: 0 | X103: 0 | AA103: 0 | AD103: 0 | AG103: 0 | AJ103: 0 | AM103: 0 | AP103: 0 | AQ103: 0 | AR103: 0 | AT103: 0 | AU103: 300 | AV103: تم دفع كامل القيمة | AX103: 0
D104: 2016-12-31 | E104: 363 | G104: 700 | H104: 300 | I104: 0 | L104: 0 | O104: 0 | R104: 0 | U104: 0 | X104: 0 | AA104: 0 | AD104: 0 | AG104: 0 | AJ104: 0 | AM104: 0 | AP104: 0 | AQ104: 0 | AR104: 0 | AT104: 0 | AU104: 300 | AV104: تم دفع كامل القيمة | AX104: 0
D105: 2016-01-05 | E105: 2 | G105: 700 | H105: 300 | I105: 0 | L105: 0 | O105: 0 | R105: 0 | U105: 0 | X105: 0 | AA105: 0 | AD105: 0 | AG105: 0 | AJ105: 0 | AM105: 0 | AP105: 0 | AQ105: 0 | AR105: 0 | AT105: 0 | AU105: 300 | AV105: تم دفع كامل القيمة | AX105: 0
D106: 2016-03-01 | E106: 58 | G106: 700 | H106: 300 | I106: 0 | L106: 0 | O106: 0 | R106: 0 | U106: 0 | X106: 0 | AA106: 0 | AD106: 0 | AG106: 0 | AJ106: 0 | AM106: 0 | AP106: 0 | AQ106: 0 | AR106: 0 | AT106: 0 | AU106: 300 | AV106: تم دفع كامل القيمة | AX106: 0
D107: 2016-06-08 | E107: 157 | G107: 700 | H107: 300 | I107: 0 | L107: 0 | O107: 0 | R107: 0 | U107: 0 | X107: 0 | AA107: 0 | AD107: 0 | AG107: 0 | AJ107: 0 | AM107: 0 | AP107: 0 | AQ107: 0 | AR107: 0 | AT107: 0 | AU107: 300 | AV107: تم دفع كامل القيمة | AX107: 0
G108: 700 | H108: 300 | I108: 0 | L108: 0 | O108: 0 | R108: 0 | U108: 0 | X108: 0 | AA108: 0 | AD108: 0 | AG108: 0 | AJ108: 0 | AM108: 0 | AP108: 0 | AQ108: 0 | AR108: 0 | AT108: 0 | AU108: 300 | AV108: تم دفع كامل القيمة | AX108: 0
G109: 700 | H109: 300 | I109: 0 | L109: 0 | O109: 0 | R109: 0 | U109: 0 | X109: 0 | AA109: 0 | AD109: 0 | AG109: 0 | AJ109: 0 | AM109: 0 | AP109: 0 | AQ109: 0 | AR109: 0 | AT109: 0 | AU109: 300 | AV109: تم دفع كامل القيمة | AX109: 0
G110: 700 | H110: 300 | I110: 0 | L110: 0 | O110: 0 | R110: 0 | U110: 0 | X110: 0 | AA110: 0 | AD110: 0 | AG110: 0 | AJ110: 0 | AM110: 0 | AP110: 0 | AQ110: 0 | AR110: 0 | AT110: 0 | AU110: 300 | AV110: تم دفع كامل القيمة | AX110: 0
G111: 700 | H111: 300 | I111: 0 | L111: 0 | O111: 0 | R111: 0 | U111: 0 | X111: 0 | AA111: 0 | AD111: 0 | AG111: 0 | AJ111: 0 | AM111: 0 | AP111: 0 | AQ111: 0 | AR111: 0 | AT111: 0 | AU111: 300 | AV111: تم دفع كامل القيمة | AX111: 0
G112: 700 | H112: 300 | I112: 0 | L112: 0 | O112: 0 | R112: 0 | U112: 0 | X112: 0 | AA112: 0 | AD112: 0 | AG112: 0 | AJ112: 0 | AM112: 0 | AP112: 0 | AQ112: 0 | AR112: 0 | AT112: 0 | AU112: 300 | AV112: تم دفع كامل القيمة | AX112: 0
G113: 700 | H113: 300 | I113: 0 | L113: 0 | O113: 0 | R113: 0 | U113: 0 | X113: 0 | AA113: 0 | AD113: 0 | AG113: 0 | AJ113: 0 | AM113: 0 | AP113: 0 | AQ113: 0 | AR113: 0 | AT113: 0 | AU113: 300 | AV113: تم دفع كامل القيمة | AX113: 0
G114: 700 | H114: 300 | I114: 0 | L114: 0 | O114: 0 | R114: 0 | U114: 0 | X114: 0 | AA114: 0 | AD114: 0 | AG114: 0 | AJ114: 0 | AM114: 0 | AP114: 0 | AQ114: 0 | AR114: 0 | AT114: 0 | AU114: 300 | AV114: تم دفع كامل القيمة | AX114: 0
G115: 700 | H115: 300 | I115: 0 | L115: 0 | O115: 0 | R115: 0 | U115: 0 | X115: 0 | AA115: 0 | AD115: 0 | AG115: 0 | AJ115: 0 | AM115: 0 | AP115: 0 | AQ115: 0 | AR115: 0 | AT115: 0 | AU115: 300 | AV115: تم دفع كامل القيمة | AX115: 0
G116: 700 | H116: 300 | I116: 0 | L116: 0 | O116: 0 | R116: 0 | U116: 0 | X116: 0 | AA116: 0 | AD116: 0 | AG116: 0 | AJ116: 0 | AM116: 0 | AP116: 0 | AQ116: 0 | AR116: 0 | AT116: 0 | AU116: 300 | AV116: تم دفع كامل القيمة | AX116: 0
G117: 700 | H117: 300 | I117: 0 | L117: 0 | O117: 0 | R117: 0 | U117: 0 | X117: 0 | AA117: 0 | AD117: 0 | AG117: 0 | AJ117: 0 | AM117: 0 | AP117: 0 | AQ117: 0 | AR117: 0 | AT117: 0 | AU117: 300 | AV117: تم دفع كامل القيمة | AX117: 0
G118: 700 | H118: 300 | I118: 0 | L118: 0 | O118: 0 | R118: 0 | U118: 0 | X118: 0 | AA118: 0 | AD118: 0 | AG118: 0 | AJ118: 0 | AM118: 0 | AP118: 0 | AQ118: 0 | AR118: 0 | AT118: 0 | AU118: 300 | AV118: تم دفع كامل القيمة | AX118: 0
E119: =DATEDIF($D$3,$D119,"d") ->  | G119: 700 | H119: 300 | I119: =IF(A119<>"",IF(AW119<>"",AQ119,H119+G119),0) -> 0 | L119: =IF(J119<>"",I119-J119,0) -> 0 | O119: =IF(M119<>"",L119-M119,0) -> 0 | R119: =IF(P119<>"",O119-P119,0) -> 0 | U119: =IF(S119<>"",R119-S119,0) -> 0 | X119: =IF(V119<>"",U119-V119,0) -> 0 | AA119: =IF(Y119<>"",X119-Y119,0) -> 0 | AD119: =IF(AB119<>"",AA119-AB119,0) -> 0 | AG119: =IF(AE119<>"",AD119-AE119,0) -> 0 | AJ119: =IF(AH119<>"",AG119-AH119,0) -> 0 | AM119: =IF(AK119<>"",AJ119-AK119,0) -> 0 | AP119: =IF(AN119<>"",AM119-AN119,0) -> 0 | AQ119: =SUM(AN119+AK119+AH119+AE119+AB119+Y119+V119+S119+P119+M119+J119) -> 0 | AR119: =IF(AN119<>"",AN119,IF(AK119<>"",AK119,IF(AH119<>"",AH119,IF(AE119<>"",AE119,IF(AB119<>"",AB119,IF(Y119<>"",Y119,IF(V119<>"",V119,IF(S119<>"",S119,IF(P119<>"",P119,IF(M119<>"",M119,IF(J119<>"",J119,0))))))))))) -> 0 | AT119: =IF(AQ119=I119,0,IF(AP119>1,AP119,IF(AM119>1,AM119,IF(AJ119>1,AJ119,IF(AG119>1,AG119,IF(AD119>1,AD119,IF(AA119>1,AA119,IF(X119>1,X119,IF(U119>1,U119,IF(R119>1,R119,IF(O119>1,O119,IF(L119>1,L119,I119)))))))))))) -> 0 | AU119: =IF(H119>AQ119,H119-AQ119,"لا يوجد") -> 300 | AV119: =IF(AQ119=I119,"تم دفع كامل القيمة","القيمة غير مكتملة") -> تم دفع كامل القيمة | AX119: =COUNTIF(J119:AP119,">1")/3 -> 0
G120: 700 | H120: 300 | I120: 0 | L120: 0 | O120: 0 | R120: 0 | U120: 0 | X120: 0 | AA120: 0 | AD120: 0 | AG120: 0 | AJ120: 0 | AM120: 0 | AP120: 0 | AQ120: 0 | AR120: 0 | AT120: 0 | AU120: 300 | AV120: تم دفع كامل القيمة | AX120: 0
G121: 700 | H121: 300 | I121: 0 | L121: 0 | O121: 0 | R121: 0 | U121: 0 | X121: 0 | AA121: 0 | AD121: 0 | AG121: 0 | AJ121: 0 | AM121: 0 | AP121: 0 | AQ121: 0 | AR121: 0 | AT121: 0 | AU121: 300 | AV121: تم دفع كامل القيمة | AX121: 0
G122: 700 | H122: 300 | I122: 0 | L122: 0 | O122: 0 | R122: 0 | U122: 0 | X122: 0 | AA122: 0 | AD122: 0 | AG122: 0 | AJ122: 0 | AM122: 0 | AP122: 0 | AQ122: 0 | AR122: 0 | AT122: 0 | AU122: 300 | AV122: تم دفع كامل القيمة | AX122: 0
G123: 700 | H123: 300 | I123: 0 | L123: 0 | O123: 0 | R123: 0 | U123: 0 | X123: 0 | AA123: 0 | AD123: 0 | AG123: 0 | AJ123: 0 | AM123: 0 | AP123: 0 | AQ123: 0 | AR123: 0 | AT123: 0 | AU123: 300 | AV123: تم دفع كامل القيمة | AX123: 0
G124: 700 | H124: 300 | I124: 0 | L124: 0 | O124: 0 | R124: 0 | U124: 0 | X124: 0 | AA124: 0 | AD124: 0 | AG124: 0 | AJ124: 0 | AM124: 0 | AP124: 0 | AQ124: 0 | AR124: 0 | AT124: 0 | AU124: 300 | AV124: تم دفع كامل القيمة | AX124: 0
G125: 700 | H125: 300 | I125: 0 | L125: 0 | O125: 0 | R125: 0 | U125: 0 | X125: 0 | AA125: 0 | AD125: 0 | AG125: 0 | AJ125: 0 | AM125: 0 | AP125: 0 | AQ125: 0 | AR125: 0 | AT125: 0 | AU125: 300 | AV125: تم دفع كامل القيمة | AX125: 0
G126: 700 | H126: 300 | I126: 0 | L126: 0 | O126: 0 | R126: 0 | U126: 0 | X126: 0 | AA126: 0 | AD126: 0 | AG126: 0 | AJ126: 0 | AM126: 0 | AP126: 0 | AQ126: 0 | AR126: 0 | AT126: 0 | AU126: 300 | AV126: تم دفع كامل القيمة | AX126: 0
G127: 700 | H127: 300 | I127: 0 | L127: 0 | O127: 0 | R127: 0 | U127: 0 | X127: 0 | AA127: 0 | AD127: 0 | AG127: 0 | AJ127: 0 | AM127: 0 | AP127: 0 | AQ127: 0 | AR127: 0 | AT127: 0 | AU127: 300 | AV127: تم دفع كامل القيمة | AX127: 0
G128: 700 | H128: 300 | I128: 0 | L128: 0 | O128: 0 | R128: 0 | U128: 0 | X128: 0 | AA128: 0 | AD128: 0 | AG128: 0 | AJ128: 0 | AM128: 0 | AP128: 0 | AQ128: 0 | AR128: 0 | AT128: 0 | AU128: 300 | AV128: تم دفع كامل القيمة | AX128: 0
G129: 700 | H129: 300 | I129: 0 | L129: 0 | O129: 0 | R129: 0 | U129: 0 | X129: 0 | AA129: 0 | AD129: 0 | AG129: 0 | AJ129: 0 | AM129: 0 | AP129: 0 | AQ129: 0 | AR129: 0 | AT129: 0 | AU129: 300 | AV129: تم دفع كامل القيمة | AX129: 0
G130: 700 | H130: 300 | I130: 0 | L130: 0 | O130: 0 | R130: 0 | U130: 0 | X130: 0 | AA130: 0 | AD130: 0 | AG130: 0 | AJ130: 0 | AM130: 0 | AP130: 0 | AQ130: 0 | AR130: 0 | AT130: 0 | AU130: 300 | AV130: تم دفع كامل القيمة | AX130: 0
G131: 700 | H131: 300 | I131: 0 | L131: 0 | O131: 0 | R131: 0 | U131: 0 | X131: 0 | AA131: 0 | AD131: 0 | AG131: 0 | AJ131: 0 | AM131: 0 | AP131: 0 | AQ131: 0 | AR131: 0 | AT131: 0 | AU131: 300 | AV131: تم دفع كامل القيمة | AX131: 0
G132: 700 | H132: 300 | I132: 0 | L132: 0 | O132: 0 | R132: 0 | U132: 0 | X132: 0 | AA132: 0 | AD132: 0 | AG132: 0 | AJ132: 0 | AM132: 0 | AP132: 0 | AQ132: 0 | AR132: 0 | AT132: 0 | AU132: 300 | AV132: تم دفع كامل القيمة | AX132: 0
G133: 700 | H133: 300 | I133: 0 | L133: 0 | O133: 0 | R133: 0 | U133: 0 | X133: 0 | AA133: 0 | AD133: 0 | AG133: 0 | AJ133: 0 | AM133: 0 | AP133: 0 | AQ133: 0 | AR133: 0 | AT133: 0 | AU133: 300 | AV133: تم دفع كامل القيمة | AX133: 0
G134: 700 | H134: 300 | I134: 0 | L134: 0 | O134: 0 | R134: 0 | U134: 0 | X134: 0 | AA134: 0 | AD134: 0 | AG134: 0 | AJ134: 0 | AM134: 0 | AP134: 0 | AQ134: 0 | AR134: 0 | AT134: 0 | AU134: 300 | AV134: تم دفع كامل القيمة | AX134: 0
G135: 700 | H135: 300 | I135: 0 | L135: 0 | O135: 0 | R135: 0 | U135: 0 | X135: 0 | AA135: 0 | AD135: 0 | AG135: 0 | AJ135: 0 | AM135: 0 | AP135: 0 | AQ135: 0 | AR135: 0 | AT135: 0 | AU135: 300 | AV135: تم دفع كامل القيمة | AX135: 0
G136: 700 | H136: 300 | I136: 0 | L136: 0 | O136: 0 | R136: 0 | U136: 0 | X136: 0 | AA136: 0 | AD136: 0 | AG136: 0 | AJ136: 0 | AM136: 0 | AP136: 0 | AQ136: 0 | AR136: 0 | AT136: 0 | AU136: 300 | AV136: تم دفع كامل القيمة | AX136: 0
G137: 700 | H137: 300 | I137: 0 | L137: 0 | O137: 0 | R137: 0 | U137: 0 | X137: 0 | AA137: 0 | AD137: 0 | AG137: 0 | AJ137: 0 | AM137: 0 | AP137: 0 | AQ137: 0 | AR137: 0 | AT137: 0 | AU137: 300 | AV137: تم دفع كامل القيمة | AX137: 0
G138: 700 | H138: 300 | I138: 0 | L138: 0 | O138: 0 | R138: 0 | U138: 0 | X138: 0 | AA138: 0 | AD138: 0 | AG138: 0 | AJ138: 0 | AM138: 0 | AP138: 0 | AQ138: 0 | AR138: 0 | AT138: 0 | AU138: 300 | AV138: تم دفع كامل القيمة | AX138: 0
G139: 700 | H139: 300 | I139: 0 | L139: 0 | O139: 0 | R139: 0 | U139: 0 | X139: 0 | AA139: 0 | AD139: 0 | AG139: 0 | AJ139: 0 | AM139: 0 | AP139: 0 | AQ139: 0 | AR139: 0 | AT139: 0 | AU139: 300 | AV139: تم دفع كامل القيمة | AX139: 0
G140: 700 | H140: 300 | I140: 0 | L140: 0 | O140: 0 | R140: 0 | U140: 0 | X140: 0 | AA140: 0 | AD140: 0 | AG140: 0 | AJ140: 0 | AM140: 0 | AP140: 0 | AQ140: 0 | AR140: 0 | AT140: 0 | AU140: 300 | AV140: تم دفع كامل القيمة | AX140: 0
G141: 700 | H141: 300 | I141: 0 | L141: 0 | O141: 0 | R141: 0 | U141: 0 | X141: 0 | AA141: 0 | AD141: 0 | AG141: 0 | AJ141: 0 | AM141: 0 | AP141: 0 | AQ141: 0 | AR141: 0 | AT141: 0 | AU141: 300 | AV141: تم دفع كامل القيمة | AX141: 0
G142: 700 | H142: 300 | I142: 0 | L142: 0 | O142: 0 | R142: 0 | U142: 0 | X142: 0 | AA142: 0 | AD142: 0 | AG142: 0 | AJ142: 0 | AM142: 0 | AP142: 0 | AQ142: 0 | AR142: 0 | AT142: 0 | AU142: 300 | AV142: تم دفع كامل القيمة | AX142: 0
G143: 700 | H143: 300 | I143: 0 | L143: 0 | O143: 0 | R143: 0 | U143: 0 | X143: 0 | AA143: 0 | AD143: 0 | AG143: 0 | AJ143: 0 | AM143: 0 | AP143: 0 | AQ143: 0 | AR143: 0 | AT143: 0 | AU143: 300 | AV143: تم دفع كامل القيمة | AX143: 0
G144: 700 | H144: 300 | I144: 0 | L144: 0 | O144: 0 | R144: 0 | U144: 0 | X144: 0 | AA144: 0 | AD144: 0 | AG144: 0 | AJ144: 0 | AM144: 0 | AP144: 0 | AQ144: 0 | AR144: 0 | AT144: 0 | AU144: 300 | AV144: تم دفع كامل القيمة | AX144: 0
G145: 700 | H145: 300 | I145: 0 | L145: 0 | O145: 0 | R145: 0 | U145: 0 | X145: 0 | AA145: 0 | AD145: 0 | AG145: 0 | AJ145: 0 | AM145: 0 | AP145: 0 | AQ145: 0 | AR145: 0 | AT145: 0 | AU145: 300 | AV145: تم دفع كامل القيمة | AX145: 0
G146: 700 | H146: 300 | I146: 0 | L146: 0 | O146: 0 | R146: 0 | U146: 0 | X146: 0 | AA146: 0 | AD146: 0 | AG146: 0 | AJ146: 0 | AM146: 0 | AP146: 0 | AQ146: 0 | AR146: 0 | AT146: 0 | AU146: 300 | AV146: تم دفع كامل القيمة | AX146: 0
G147: 700 | H147: 300 | I147: 0 | L147: 0 | O147: 0 | R147: 0 | U147: 0 | X147: 0 | AA147: 0 | AD147: 0 | AG147: 0 | AJ147: 0 | AM147: 0 | AP147: 0 | AQ147: 0 | AR147: 0 | AT147: 0 | AU147: 300 | AV147: تم دفع كامل القيمة | AX147: 0
G148: 700 | H148: 300 | I148: 0 | L148: 0 | O148: 0 | R148: 0 | U148: 0 | X148: 0 | AA148: 0 | AD148: 0 | AG148: 0 | AJ148: 0 | AM148: 0 | AP148: 0 | AQ148: 0 | AR148: 0 | AT148: 0 | AU148: 300 | AV148: تم دفع كامل القيمة | AX148: 0
G149: 700 | H149: 300 | I149: 0 | L149: 0 | O149: 0 | R149: 0 | U149: 0 | X149: 0 | AA149: 0 | AD149: 0 | AG149: 0 | AJ149: 0 | AM149: 0 | AP149: 0 | AQ149: 0 | AR149: 0 | AT149: 0 | AU149: 300 | AV149: تم دفع كامل القيمة | AX149: 0
D150: 2016-09-24 | E150: 265 | G150: 700 | H150: 300 | I150: 0 | L150: 0 | O150: 0 | R150: 0 | U150: 0 | X150: 0 | AA150: 0 | AD150: 0 | AG150: 0 | AJ150: 0 | AM150: 0 | AP150: 0 | AQ150: 0 | AR150: 0 | AT150: 0 | AU150: 300 | AV150: تم دفع كامل القيمة | AX150: 0
E151: =DATEDIF($D$3,$D151,"d") ->  | G151: 700 | H151: 300 | I151: =IF(A151<>"",IF(AW151<>"",AQ151,H151+G151),0) -> 0 | L151: =IF(J151<>"",I151-J151,0) -> 0 | O151: =IF(M151<>"",L151-M151,0) -> 0 | R151: =IF(P151<>"",O151-P151,0) -> 0 | U151: =IF(S151<>"",R151-S151,0) -> 0 | X151: =IF(V151<>"",U151-V151,0) -> 0 | AA151: =IF(Y151<>"",X151-Y151,0) -> 0 | AD151: =IF(AB151<>"",AA151-AB151,0) -> 0 | AG151: =IF(AE151<>"",AD151-AE151,0) -> 0 | AJ151: =IF(AH151<>"",AG151-AH151,0) -> 0 | AM151: =IF(AK151<>"",AJ151-AK151,0) -> 0 | AP151: =IF(AN151<>"",AM151-AN151,0) -> 0 | AQ151: =SUM(AN151+AK151+AH151+AE151+AB151+Y151+V151+S151+P151+M151+J151) -> 0 | AR151: =IF(AN151<>"",AN151,IF(AK151<>"",AK151,IF(AH151<>"",AH151,IF(AE151<>"",AE151,IF(AB151<>"",AB151,IF(Y151<>"",Y151,IF(V151<>"",V151,IF(S151<>"",S151,IF(P151<>"",P151,IF(M151<>"",M151,IF(J151<>"",J151,0))))))))))) -> 0 | AT151: =IF(AQ151=I151,0,IF(AP151>1,AP151,IF(AM151>1,AM151,IF(AJ151>1,AJ151,IF(AG151>1,AG151,IF(AD151>1,AD151,IF(AA151>1,AA151,IF(X151>1,X151,IF(U151>1,U151,IF(R151>1,R151,IF(O151>1,O151,IF(L151>1,L151,I151)))))))))))) -> 0 | AU151: =IF(H151>AQ151,H151-AQ151,"لا يوجد") -> 300 | AV151: =IF(AQ151=I151,"تم دفع كامل القيمة","القيمة غير مكتملة") -> تم دفع كامل القيمة | AX151: =COUNTIF(J151:AP151,">1")/3 -> 0
D152: 2016-11-16 | E152: 318 | G152: 700 | H152: 300 | I152: 0 | L152: 0 | O152: 0 | R152: 0 | U152: 0 | X152: 0 | AA152: 0 | AD152: 0 | AG152: 0 | AJ152: 0 | AM152: 0 | AP152: 0 | AQ152: 0 | AR152: 0 | AT152: 0 | AU152: 300 | AV152: تم دفع كامل القيمة | AX152: 0
D153: 2016-09-24 | E153: 265 | G153: 700 | H153: 300 | I153: 0 | L153: 0 | O153: 0 | R153: 0 | U153: 0 | X153: 0 | AA153: 0 | AD153: 0 | AG153: 0 | AJ153: 0 | AM153: 0 | AP153: 0 | AQ153: 0 | AR153: 0 | AT153: 0 | AU153: 300 | AV153: تم دفع كامل القيمة | AX153: 0
D154: 2016-09-24 | E154: 265 | G154: 700 | H154: 300 | I154: 0 | L154: 0 | O154: 0 | R154: 0 | U154: 0 | X154: 0 | AA154: 0 | AD154: 0 | AG154: 0 | AJ154: 0 | AM154: 0 | AP154: 0 | AQ154: 0 | AR154: 0 | AT154: 0 | AU154: 300 | AV154: تم دفع كامل القيمة | AX154: 0
D155: 2016-09-24 | E155: 265 | G155: 700 | H155: 300 | I155: 0 | L155: 0 | O155: 0 | R155: 0 | U155: 0 | X155: 0 | AA155: 0 | AD155: 0 | AG155: 0 | AJ155: 0 | AM155: 0 | AP155: 0 | AQ155: 0 | AR155: 0 | AT155: 0 | AU155: 300 | AV155: تم دفع كامل القيمة | AX155: 0
D156: 2016-09-16 | E156: 257 | G156: 700 | H156: 300 | I156: 0 | J156: 320 | K156: 2016-09-25 | L156: -320 | O156: 0 | R156: 0 | U156: 0 | X156: 0 | AA156: 0 | AD156: 0 | AG156: 0 | AJ156: 0 | AM156: 0 | AP156: 0 | AQ156: 320 | AR156: 320 | AT156: 0 | AU156: لا يوجد | AV156: القيمة غير مكتملة | AX156: 0.6666666667
D157: 2016-09-24 | E157: 265 | G157: 700 | H157: 300 | I157: 0 | L157: 0 | O157: 0 | R157: 0 | U157: 0 | X157: 0 | AA157: 0 | AD157: 0 | AG157: 0 | AJ157: 0 | AM157: 0 | AP157: 0 | AQ157: 0 | AR157: 0 | AT157: 0 | AU157: 300 | AV157: تم دفع كامل القيمة | AX157: 0
D158: 2016-09-16 | E158: 257 | G158: 700 | H158: 300 | I158: 0 | L158: 0 | O158: 0 | R158: 0 | U158: 0 | X158: 0 | AA158: 0 | AD158: 0 | AG158: 0 | AJ158: 0 | AM158: 0 | AP158: 0 | AQ158: 0 | AR158: 0 | AT158: 0 | AU158: 300 | AV158: تم دفع كامل القيمة | AX158: 0
D159: 2016-09-24 | E159: 265 | G159: 700 | H159: 300 | I159: 0 | L159: 0 | O159: 0 | R159: 0 | U159: 0 | X159: 0 | AA159: 0 | AD159: 0 | AG159: 0 | AJ159: 0 | AM159: 0 | AP159: 0 | AQ159: 0 | AR159: 0 | AT159: 0 | AU159: 300 | AV159: تم دفع كامل القيمة | AX159: 0
D160: 2016-09-24 | E160: 265 | G160: 700 | H160: 300 | I160: 0 | L160: 0 | O160: 0 | R160: 0 | U160: 0 | X160: 0 | AA160: 0 | AD160: 0 | AG160: 0 | AJ160: 0 | AM160: 0 | AP160: 0 | AQ160: 0 | AR160: 0 | AT160: 0 | AU160: 300 | AV160: تم دفع كامل القيمة | AX160: 0
D161: 2016-09-24 | E161: 265 | G161: 700 | H161: 300 | I161: 0 | L161: 0 | O161: 0 | R161: 0 | U161: 0 | X161: 0 | AA161: 0 | AD161: 0 | AG161: 0 | AJ161: 0 | AM161: 0 | AP161: 0 | AQ161: 0 | AR161: 0 | AT161: 0 | AU161: 300 | AV161: تم دفع كامل القيمة | AX161: 0
E162: الثاني | F162: =SUMIF(#REF!,"الثاني",#REF!) ->  | I162: 9
C164: =SUM(C157+C164) -> 0

Sheet ورقة4
B3: توضيح للحركة المالية لايرادات الطلبة
B9: الصف | C9: الاجمالي المستهدف | D9: الاجمالي المدفوع | E9: القيمة الباقية
B10: الاول | C10: =INDEX(ورقة1!$I$154,COUNTA(B$10)) -> 0 | D10: =ورقة1!AQ155 -> 0 | E10: =ورقة1!AT155 -> 0
B11: الثاني | D11: =ورقة1!AQ156 -> 320 | E11: =ورقة1!AT156 -> 0
B12: الثالث | D12: =ورقة1!AQ157 -> 0 | E12: =ورقة1!AT157 -> 0
B13: الرابع | D13: =ورقة1!AQ158 -> 0 | E13: =ورقة1!AT158 -> 0
B14: الخامس | D14: =ورقة1!AQ159 -> 0 | E14: =ورقة1!AT159 -> 0
B15: السادس | D15: =ورقة1!AQ160 -> 0 | E15: =ورقة1!AT160 -> 0
B16: السابع | D16: =ورقة1!AQ161 -> 0 | E16: =ورقة1!AT161 -> 0
B17: الثامن | D17: =ورقة1!AQ162 -> 0 | E17: =ورقة1!AT162 -> 0
B18: التاسع | D18: =ورقة1!AQ163 -> 0 | E18: =ورقة1!AT163 -> 0
C19: المستهدف | D19: المستلم | E19: الباقي
C20: =SUM(C10:C18) -> 0 | D20: =SUM(D10:D18) -> 320 | E20: =SUM(E10:E18) -> 0

Sheet ايصال طلبة
C2: مدرسة النهج السليم | I2: OFFSET(ورقة1!A5;MATCH(ورقة5!G7;ورقة1!C5:C400;0)-1;;COUNTIF(ورقة1!C5:C400;ورقة5!G7))
A5: ايصال مالي | F5: دفعة رقم | G5: =VLOOKUP($C$7,ورقة1!$A1:$AX146,50,FALSE) -> 0
A7: اسم الطالب / | C7: سوسن | E7: الصف / | G7: التمهيدي
A8: دين سابق | B8: القيمة السنوية | C8: اجمالي القيمة | D8: القيمة المدفوعة | E8: الدفعة الحالية | F8: القيمة الباقية | G8: التاريخ
A9: =VLOOKUP($C$7,ورقة1!$A5:$AX150,8,FALSE) -> 300 | B9: =VLOOKUP($C$7,ورقة1!$A5:$AX150,7,FALSE) -> 700 | C9: =VLOOKUP($C$7,ورقة1!$A5:$AX150,9,FALSE) -> 1000 | D9: =VLOOKUP($C$7,ورقة1!$A5:$AX150,43,FALSE) -> 0 | E9: =VLOOKUP($C$7,ورقة1!$A5:$AX150,44,FALSE) -> 0 | F9: =VLOOKUP($C$7,ورقة1!$A5:$AX150,46,FALSE) -> 1000 | G9: =TODAY() -> 2016-10-21
C13: دين سابق | E13: =VLOOKUP($C$7,ورقة1!$A5:$AX150,47,FALSE) -> 300
C15: =VLOOKUP($C$7,ورقة1!$A5:$AX150,48,FALSE) -> القيمة غير مكتملة
F17: الشئون المالية
F18: ...........................
A20: ……………………………………………………………………………………………………………
C23: =C2 -> مدرسة النهج السليم
A26: ايصال مالي | F26: دفعة رقم | G26: =G5 -> 0
A28: =A7 -> اسم الطالب / | C28: =C7 -> سوسن | E28: الصف / | G28: =G7 -> التمهيدي
A29: دين سابق | B29: القيمة السنوية | C29: اجمالي القيمة | D29: القيمة المدفوعة | E29: الدفعة الحالية | F29: القيمة الباقية | G29: التاريخ
A30: =A9 -> 300 | B30: 700 | C30: 1000 | D30: 0 | E30: 0 | F30: 1000 | G30: 2016-10-21
C34: دين سابق | E34: =E13 -> 300
C36: =C15 -> القيمة غير مكتملة
F38: الشئون المالية
F39: ...........................
D54: الصفوف
D55: الاول
D56: الثاني
D57: الثالث
D58: الرابع
D59: الخامس
D60: السادس
D61: السابع
D62: الثامن
D63: التاسع
D64: اول ثانوي
D65: ثاني ثانوي
D66: ثالث ثانوي
D67: التمهيدي

Sheet ورقة6
B5: الاول | C5: الثاني | D5: الثالث | E5: الرابع | F5: الخامس | G5: السادس | H5: السابع | I5: الثامن | J5: التاسع
A6: المستهدف | B6: =ورقة1!F156 -> 0 | C6: =ورقة1!F157 -> 0 | D6: =ورقة1!F158 -> 0 | E6: =ورقة1!F159 -> 0 | F6: =ورقة1!F160 -> 0 | G6: =ورقة1!F161 -> 0
A7: الموجود
A8: الباقي

Sheet المصروفات
A6: ت | B6: نوع الصرف | C6: رقم الفاتورة | D6: نوع المواد | E6: تاريخ الفيتورة | F6: قيمة الفيتورة | G6: اسم الموظف | J6: مجموع قيمة الفواتير | K6: اصول ثابتة | L6: مستهلكة
A7: 1 | B7: اثاث مدرسي | C7: 20 | D7: ثابتة | E7: 2016-10-17 | F7: 120 | G7: علي | J7: =SUM(F7:F300) -> 3295 | K7: =SUMIF(D7:D300,"ثابتة",F7:F300) -> 120 | L7: =SUMIF(D7:D300,"مستهلكة",F7:F300) -> 3175
A8: 2 | B8: قرطاسية | C8: 21 | D8: مستهلكة | E8: 2016-10-17 | F8: 115 | G8: احمد
A9: 3 | B9: ايجار سيارة | C9: 22 | D9: مستهلكة | E9: 2016-10-17 | F9: 60 | G9: عمر
A10: 4 | B10: ايجار مبنى | C10: 24 | D10: مستهلكة | E10: 2016-10-18 | F10: 3000 | G10: احمد

Sheet ورقة8
C3: المدخول ... المصروف ... الموجود
E5: =TODAY() -> 2016-10-21
C7: القيمة النقدية | D7: ايرادات طلبة | E7: الاجمالي الكلي | F7: ديون طلبة | G7: الاجمالي بالديون
C8: 5000 | D8: =ورقة1!G2 -> 1650 | E8: =SUM(C8:D8) -> 6650 | F8: =ورقة1!I2-ورقة1!G2 -> 41369 | G8: =ورقة1!I2 -> 43019
C10: المصروفات
C12: اجمالي فواتير | D12: اجمالي رواتب | E12: اجمالي كلي
C13: =المصروفات!J7 -> 3295 | D13: ='تجميع الشهور'!E22 -> 550 | E13: =SUM(C13:D13) -> 3845
C15: الصافي الموجود
D18: =SUM(E8-E13) -> 2805

Sheet شهر 10
H2: المالية .... رواتب شهر 10 | R2: =TODAY() -> 2016-10-21
A4: ت | B4: اسم المعلم | C4: التخصص | D4: الوظيفة | E4: الراتب | F4: عدد الفصول | G4: عدد الحصص | H4: قيمة الحصة | I4: الاجمالي الاسبوعي | J4: الاجمالي الشهري | K4: الغياب | L4: منحة اضافية | M4: قيمة مرحلة | N4: الصافي | O4: دفعة اولى | P4: دفعة ثانية | Q4: دفعة ثالثة | R4: دفعة رابعة | S4: اجمالي مدفوع | T4: الباقي | V4: اجمالي مستحق ش 10 | W4: اجمالي مدفوع شهر 10 | X4: اجمالي باقي ش10
A5: 1 | D5: معلم | F5: 6+5+7 | G5: 10 | H5: 8 | I5: =SUM(H5*G5) -> 80 | J5: =SUM(I5*4+E5) -> 320 | K5: 2 | L5: 20 | N5: =SUM(J5-(K5*H5)+M5+L5) -> 324 | O5: 150 | S5: =SUM(O5+P5+Q5+R5) -> 150 | T5: =SUM(N5-S5) -> 174 | V5: =SUM(N5:N100) -> 1274 | W5: =SUM(S5:S100) -> 350 | X5: =SUM(T5:T100) -> 924
A6: 2 | D6: موظف | G6: 5 | H6: 50 | I6: =SUM(H6*G6) -> 250 | J6: =SUM(I6*4) -> 1000 | K6: 1 | N6: =SUM(J6-(K6*H6)) -> 950 | O6: 200 | S6: =SUM(O6+P6+Q6+R6) -> 200 | T6: =SUM(N6-S6) -> 750
A7: 3
A8: 4

Sheet شهر 11
H2: المالية .... رواتب شهر 11 | R2: =TODAY() -> 2016-10-21
A4: ت | B4: اسم المعلم | C4: التخصص | D4: الوظيفة | E4: الراتب | F4: عدد الفصول | G4: عدد الحصص | H4: قيمة الحصة | I4: الاجمالي الاسبوعي | J4: الاجمالي الشهري | K4: الغياب | L4: منحة اضافية | M4: قيمة مرحلة | N4: الصافي | O4: دفعة اولى | P4: دفعة ثانية | Q4: دفعة ثالثة | R4: دفعة رابعة | S4: اجمالي مدفوع | T4: الباقي | V4: اجمالي مستحق ش 11 | W4: اجمالي مدفوع شهر 11 | X4: اجمالي باقي ش11
A5: 1 | D5: معلم | E5: 500 | F5: 6+5+7 | G5: 10 | H5: 8 | I5: =SUM(H5*G5) -> 80 | J5: =SUM(I5*4+E5) -> 820 | M5: ='شهر 10'!T5 -> 174 | N5: =SUM(J5-(K5*H5)+M5+L5) -> 994 | S5: =SUM(O5+P5+Q5+R5) -> 0 | T5: =SUM(N5-S5) -> 994 | V5: =SUM(N5:N100) -> 1944 | W5: =SUM(S5:S100) -> 200 | X5: =SUM(T5:T100) -> 1744
A6: 2 | D6: موظف | G6: 5 | H6: 50 | I6: =SUM(H6*G6) -> 250 | J6: =SUM(I6*4) -> 1000 | K6: 1 | N6: =SUM(J6-(K6*H6)) -> 950 | O6: 200 | S6: =SUM(O6+P6+Q6+R6) -> 200 | T6: =SUM(N6-S6) -> 750
A7: 3
A8: 4

Sheet شهر 12
H2: المالية .... رواتب شهر 12 | R2: =TODAY() -> 2016-10-21
A4: ت | B4: اسم المعلم | C4: التخصص | D4: الوظيفة | E4: الراتب | F4: عدد الفصول | G4: عدد الحصص | H4: قيمة الحصة | I4: الاجمالي الاسبوعي | J4: الاجمالي الشهري | K4: الغياب | L4: منحة اضافية | M4: قيمة مرحلة | N4: الصافي | O4: دفعة اولى | P4: دفعة ثانية | Q4: دفعة ثالثة | R4: دفعة رابعة | S4: اجمالي مدفوع | T4: الباقي | V4: اجمالي مستحق ش 11 | W4: اجمالي مدفوع شهر 11 | X4: اجمالي باقي ش11
A5: 1 | D5: معلم | E5: 300 | F5: 6+5+7 | G5: 10 | H5: 8 | I5: =SUM(H5*G5) -> 80 | J5: =SUM(I5*4+E5) -> 620 | L5: 50 | M5: ='شهر 11'!T5 -> 994 | N5: =SUM(J5-(K5*H5)+M5+L5) -> 1664 | O5: 10 | P5: 1 | Q5: 7 | R5: 50 | S5: =SUM(O5+P5+Q5+R5) -> 68 | T5: =SUM(N5-S5) -> 1596 | V5: =SUM(N5:N100) -> 2614 | W5: =SUM(S5:S100) -> 268 | X5: =SUM(T5:T100) -> 2346
A6: 2 | D6: موظف | G6: 5 | H6: 50 | I6: =SUM(H6*G6) -> 250 | J6: =SUM(I6*4) -> 1000 | K6: 1 | N6: =SUM(J6-(K6*H6)) -> 950 | O6: 200 | S6: =SUM(O6+P6+Q6+R6) -> 200 | T6: =SUM(N6-S6) -> 750
A7: 3
A8: 4

Sheet شهر 1-2017
H2: المالية .... رواتب شهر 1/2017 | R2: =TODAY() -> 2016-10-21
A4: ت | B4: اسم المعلم | C4: التخصص | D4: الوظيفة | E4: الراتب | F4: عدد الفصول | G4: عدد الحصص | H4: قيمة الحصة | I4: الاجمالي الاسبوعي | J4: الاجمالي الشهري | K4: الغياب | L4: منحة اضافية | M4: قيمة مرحلة | N4: الصافي | O4: دفعة اولى | P4: دفعة ثانية | Q4: دفعة ثالثة | R4: دفعة رابعة | S4: اجمالي مدفوع | T4: الباقي | V4: اجمالي مستحق ش 11 | W4: اجمالي مدفوع شهر 11 | X4: اجمالي باقي ش11
A5: 1 | D5: معلم | E5: 300 | F5: 6+5+7 | G5: 10 | H5: 8 | I5: =SUM(H5*G5) -> 80 | J5: =SUM(I5*4+E5) -> 620 | M5: ='شهر 12'!T5 -> 1596 | N5: =SUM(J5-(K5*H5)+M5+L5) -> 2216 | O5: 10 | P5: 1 | Q5: 7 | R5: 50 | S5: =SUM(O5+P5+Q5+R5) -> 68 | T5: =SUM(N5-S5) -> 2148 | V5: =SUM(N5:N100) -> 3166 | W5: =SUM(S5:S100) -> 268 | X5: =SUM(T5:T100) -> 2898
A6: 2 | D6: موظف | G6: 5 | H6: 50 | I6: =SUM(H6*G6) -> 250 | J6: =SUM(I6*4) -> 1000 | K6: 1 | N6: =SUM(J6-(K6*H6)) -> 950 | O6: 200 | S6: =SUM(O6+P6+Q6+R6) -> 200 | T6: =SUM(N6-S6) -> 750
A7: 3
A8: 4

Sheet شهر 2-2017
H2: المالية .... رواتب شهر 2/2017 | R2: =TODAY() -> 2016-10-21
A4: ت | B4: اسم المعلم | C4: التخصص | D4: الوظيفة | E4: الراتب | F4: عدد الفصول | G4: عدد الحصص | H4: قيمة الحصة | I4: الاجمالي الاسبوعي | J4: الاجمالي الشهري | K4: الغياب | L4: منحة اضافية | M4: قيمة مرحلة | N4: الصافي | O4: دفعة اولى | P4: دفعة ثانية | Q4: دفعة ثالثة | R4: دفعة رابعة | S4: اجمالي مدفوع | T4: الباقي | V4: اجمالي مستحق ش 11 | W4: اجمالي مدفوع شهر 11 | X4: اجمالي باقي ش11
A5: 1 | D5: معلم | E5: 300 | F5: 6+5+7 | G5: 10 | H5: 8 | I5: =SUM(H5*G5) -> 80 | J5: =SUM(I5*4+E5) -> 620 | M5: ='شهر 1-2017'!T5 -> 2148 | N5: =SUM(J5-(K5*H5)+M5+L5) -> 2768 | O5: 10 | P5: 1 | Q5: 7 | R5: 50 | S5: =SUM(O5+P5+Q5+R5) -> 68 | T5: =SUM(N5-S5) -> 2700 | V5: =SUM(N5:N100) -> 3718 | W5: =SUM(S5:S100) -> 268 | X5: =SUM(T5:T100) -> 3450
A6: 2 | D6: موظف | G6: 5 | H6: 50 | I6: =SUM(H6*G6) -> 250 | J6: =SUM(I6*4) -> 1000 | K6: 1 | N6: =SUM(J6-(K6*H6)) -> 950 | O6: 200 | S6: =SUM(O6+P6+Q6+R6) -> 200 | T6: =SUM(N6-S6) -> 750
A7: 3
A8: 4

Sheet تجميع الشهور
C5: الشهر | D5: اجمالي مستحق | E5: اجمالي مدفوع | F5: اجمالي باقي
C6: شهر 10 | D6: ='شهر 10'!V5 -> 1274 | E6: ='شهر 10'!W5 -> 350 | F6: ='شهر 10'!X5 -> 924
C7: شهر 11 | D7: ='شهر 11'!V5 -> 1944 | E7: ='شهر 11'!W5 -> 200 | F7: ='شهر 11'!X5 -> 1744
C8: شهر 12
C9: شهر 1-2017
C10: شهر 2-2017
D22: =SUM(D6:D21) -> 3218 | E22: =SUM(E6:E21) -> 550 | F22: =SUM(F6:F21) -> 2668

Sheet ورقة11

Sheet ورقة12

Sheet الرئيسية
